fUST/lending_fUST_20250701
["ID","MTS","AMOUNT","RATE_DAILY","PERIOD"]
[368743033,1751341840979,-462.90723839,0.00018441,2]
[368743034,1751341840988,-460.0,0.00018441,2]
[368743035,1751341840998,-460.0,0.00018441,2]
[368743036,1751341841008,-460.0,0.00018441,2]
[368743037,1751341841022,-460.0,0.00018441,2]
[368743038,1751341841033,-460.0,0.00018441,2]
[368743039,1751341841043,-460.0,0.00018441,2]
[368743040,1751341841053,-460.0,0.00018441,2]
[368743042,1751341841063,-460.0,0.00018441,2]
[368743044,1751341841073,-460.0,0.00018441,2]
[368743045,1751341841083,-483.99,0.00018441,2]
[368743047,1751341841094,-460.0,0.00018441,2]
[368743048,1751341841103,-460.0,0.00018441,2]
[368743049,1751341841113,-460.0,0.00018441,2]
[368743050,1751341841122,-460.0,0.00018441,2]
[368743051,1751341841132,-460.0,0.00018441,2]
[368743052,1751341841142,-500.0,0.00018441,2]
[368743053,1751341841151,-460.0,0.00018441,2]
[368743054,1751341841160,-460.0,0.00018441,2]
[368743055,1751341841169,-460.0,0.00018441,2]
[368743056,1751341841179,-460.0,0.00018441,2]
[368743057,1751341841188,-460.0,0.00018441,2]
[368743058,1751341841198,-460.0,0.00018441,2]
[368743059,1751341841207,-460.0,0.00018441,2]
[368743060,1751341841216,-506.01,0.00018441,2]
[368743061,1751341841226,-468.97747197,0.00018441,2]
[368743062,1751341841236,-460.0,0.00018441,2]
[368743063,1751341841246,-460.0,0.00018441,2]
[368743064,1751341841255,-460.0,0.00018441,2]
[368743065,1751341841264,-460.0,0.00018441,2]
[368743066,1751341841274,-460.0,0.00018441,2]
[368743067,1751341841283,-455.91413678,0.00018441,2]
[368743068,1751341841293,-460.0,0.00018441,2]
[368743069,1751341841304,-765.26,0.00018441,2]
[368743070,1751341841314,-460.0,0.00018441,2]
[368743071,1751341841323,-460.0,0.00018441,2]
[368743072,1751341841333,-460.0,0.00018441,2]
[368743073,1751341841343,-460.0,0.00018441,2]
[368743074,1751341841353,-460.0,0.00018441,2]
[368743075,1751341841363,-460.0,0.00018441,2]
[368743076,1751341841372,-460.0,0.00018441,2]
[368743077,1751341841381,-460.0,0.00018441,2]
[368743078,1751341841391,-460.0,0.00018441,2]
[368743079,1751341841400,-460.0,0.00018441,2]
[368743080,1751341841410,-460.0,0.00018441,2]
[368743081,1751341841419,-1559.66,0.00018441,2]
[368743082,1751341841429,-460.0,0.00018441,2]
[368743083,1751341841439,-460.0,0.00018441,2]
[368743084,1751341841448,-460.0,0.00018441,2]
[368743085,1751341841458,-552.37,0.00018441,2]
[368743086,1751341841467,-460.0,0.00018441,2]
[368743087,1751341841476,-460.0,0.00018441,2]
[368743088,1751341841485,-460.0,0.00018441,2]
[368743089,1751341841495,-500.0,0.00018441,2]
[368743090,1751341841504,-460.0,0.00018441,2]
[368743091,1751341841515,-460.0,0.00018441,2]
[368743092,1751341841525,-460.0,0.00018441,2]
[368743093,1751341841534,-460.0,0.00018441,2]
[368743094,1751341841544,-1381.37,0.00018441,2]
[368743095,1751341841555,-460.0,0.00018441,2]
[368743096,1751341841564,-3239.66,0.00018441,2]
[368743097,1751341841573,-460.0,0.00018441,2]
[368743098,1751341841583,-460.0,0.00018441,2]
[368743099,1751341841593,-460.0,0.00018441,2]
[368743100,1751341841602,-460.0,0.00018441,2]
[368743101,1751341841612,-666.37,0.00018441,2]
[368743102,1751341841622,-460.0,0.00018441,2]
[368743103,1751341841633,-460.0,0.00018441,2]
[368743104,1751341841642,-460.0,0.00018441,2]
[368743105,1751341841652,-460.0,0.00018441,2]
[368743106,1751341841662,-460.0,0.00018441,2]
[368743107,1751341841672,-460.0,0.00018441,2]
[368743108,1751341841681,-2695.47,0.00018441,2]
[368743109,1751341841691,-460.0,0.00018441,2]
[368743110,1751341841701,-460.0,0.00018441,2]
[368743111,1751341841711,-460.0,0.00018441,2]
[368743112,1751341841721,-460.0,0.00018441,2]
[368743113,1751341841730,-460.0,0.00018441,2]
[368743114,1751341841740,-962.98,0.00018441,2]
[368743115,1751341841750,-1096.19,0.00018441,2]
[368743116,1751341841759,-742.26,0.00018441,2]
[368743117,1751341841770,-460.0,0.00018441,2]
[368743118,1751341841780,-546.76,0.00018441,2]
[368743119,1751341841790,-460.0,0.00018441,2]
[368743120,1751341841800,-460.0,0.00018441,2]
[368743121,1751341841809,-460.0,0.00018441,2]
[368743122,1751341841818,-460.0,0.00018441,2]
[368743123,1751341841828,-460.0,0.00018441,2]
[368743124,1751341841838,-436.73973518,0.00018441,2]
[368743125,1751341841847,-488.74,0.00018441,2]
[368743126,1751341841857,-238.41783924,0.00018441,2]
[368743127,1751341841867,-293.53260678,0.00018442,2]
[368743128,1751341841877,-349.47065755,0.00018442,2]
[368743129,1751341841887,-460.0,0.00018442,2]
[368743130,1751341841897,-500.0,0.00018443,2]
[368743131,1751341841906,-460.0,0.00018444,2]
[368743132,1751341841916,-460.0,0.00018444,2]
[368743133,1751341841927,-460.0,0.00018444,2]
[368743134,1751341841939,-460.0,0.00018444,2]
[368743135,1751341841949,-460.0,0.00018444,2]
[368743136,1751341841959,-460.0,0.00018444,2]
[368743137,1751341841969,-586.26,0.00018444,2]
[368743138,1751341841979,-460.0,0.00018444,2]
[368743139,1751341841989,-460.0,0.00018444,2]
[368743140,1751341841999,-464.13877838,0.00018444,2]
[368743141,1751341842011,-305.40650939,0.00018444,2]
[368743142,1751341842021,-460.0,0.00018444,2]
[368743143,1751341842031,-460.0,0.00018444,2]
[368743144,1751341842042,-460.0,0.00018444,2]
[368743145,1751341842052,-460.0,0.00018444,2]
[368743146,1751341842061,-460.0,0.00018444,2]
[368743147,1751341842072,-460.0,0.00018444,2]
[368743148,1751341842081,-460.0,0.00018444,2]
[368743149,1751341842091,-460.0,0.00018444,2]
[368743150,1751341842199,-460.0,0.00018444,2]
[368743151,1751341842211,-460.0,0.00018444,2]
[368743152,1751341842221,-460.0,0.00018444,2]
[368743153,1751341842231,-463.45705218,0.00018444,2]
[368743154,1751341842241,-460.0,0.00018446,2]
[368743155,1751341842250,-460.0,0.00018446,2]
[368743156,1751341842260,-460.0,0.00018446,2]
[368743157,1751341842269,-460.0,0.00018446,2]
[368743158,1751341842279,-460.0,0.00018446,2]
[368743159,1751341842289,-460.0,0.00018446,2]
[368743160,1751341842299,-460.0,0.00018446,2]
[368743161,1751341842308,-460.0,0.00018446,2]
[368743162,1751341842318,-460.0,0.00018446,2]
[368743163,1751341842328,-460.0,0.00018446,2]
[368743164,1751341842337,-160.0,0.00018446,2]
[368743165,1751341842347,-460.0,0.00018446,2]
[368743166,1751341842356,-460.0,0.00018446,2]
[368743167,1751341842365,-460.0,0.00018446,2]
[368743168,1751341842375,-460.0,0.00018446,2]
[368743169,1751341842385,-501.49178889,0.00018473,2]
[368743170,1751341842394,-492.30418994,0.00018473,2]
[368743171,1751341842404,-500.0,0.00018473,2]
[368743172,1751341842414,-502.36539698,0.00018473,2]
[368743173,1751341842423,-503.78727723,0.00018473,2]
[368743174,1751341842433,-500.0,0.00018473,2]
[368743175,1751341842443,-2729.25412322,0.00018477,2]
[368743176,1751341842453,-151.0,0.000186,2]
[368743177,1751341842463,-1000.0,0.000186,2]
[368743178,1751341842473,-588.53323514,0.00018651,2]
[368743179,1751341842482,-2729.25412322,0.00018666,2]
[368743180,1751341842494,-671.91536269,0.00018692,2]
[368743181,1751341842503,-186.06798606,0.00018703,2]
[368743182,1751341842513,-460.0,0.00018713,2]
[368743183,1751341842522,-460.0,0.00018713,2]
[368743184,1751341842531,-460.0,0.00018713,2]
[368743185,1751341842541,-468.18270939,0.00018713,2]
[368743186,1751341842551,-460.0,0.00018713,2]
[368743187,1751341842560,-460.0,0.00018713,2]
[368743188,1751341842570,-460.0,0.00018713,2]
[368743189,1751341842579,-460.0,0.00018713,2]
[368743190,1751341842589,-460.0,0.00018713,2]
[368743191,1751341842599,-536.33576114,0.00018713,2]
[368743192,1751341842609,-460.0,0.00018713,2]
[368743193,1751341842619,-460.0,0.00018713,2]
[368743194,1751341842628,-460.0,0.00018713,2]
[368743195,1751341842637,-460.0,0.00018713,2]
[368743196,1751341842647,-460.0,0.00018713,2]
[368743197,1751341842657,-460.0,0.00018713,2]
[368743198,1751341842667,-460.0,0.00018713,2]
[368743200,1751341842676,-1131.01,0.00018713,2]
[368743202,1751341842686,-460.0,0.00018713,2]
[368743203,1751341842696,-460.0,0.00018713,2]
[368743204,1751341842705,-460.0,0.00018713,2]
[368743205,1751341842714,-460.0,0.00018714,2]
[368743206,1751341842724,-460.0,0.00018714,2]
[368743207,1751341842733,-460.0,0.00018714,2]
[368743208,1751341842743,-460.0,0.00018714,2]
[368743209,1751341842752,-543.82,0.00018714,2]
[368743210,1751341842762,-529.09,0.00018714,2]
[368743211,1751341842771,-460.0,0.00018714,2]
[368743212,1751341842781,-460.0,0.00018714,2]
[368743213,1751341842790,-460.0,0.00018714,2]
[368743214,1751341842800,-460.0,0.00018714,2]
[368743215,1751341842809,-460.0,0.00018714,2]
[368743216,1751341842819,-460.0,0.00018714,2]
[368743217,1751341842828,-575.65,0.00018714,2]
[368743218,1751341842838,-460.0,0.00018714,2]
[368743219,1751341842847,-460.0,0.00018714,2]
[368743220,1751341842857,-460.0,0.00018714,2]
[368743221,1751341842866,-460.0,0.00018714,2]
[368743222,1751341842876,-460.0,0.00018714,2]
[368743224,1751341842886,-460.0,0.00018714,2]
[368743226,1751341842897,-460.0,0.00018714,2]
[368743228,1751341842907,-460.98570393,0.00018714,2]
[368743229,1751341842916,-460.0,0.00018714,2]
[368743230,1751341842928,-473.06567277,0.00018714,2]
[368743231,1751341842939,-466.22455641,0.00018714,2]
[368743232,1751341842948,-460.0,0.00018714,2]
[368743233,1751341842957,-1409.12,0.00018714,2]
[368743234,1751341842967,-435.02701183,0.00018714,2]
[368743235,1751341842976,-460.0,0.00018714,2]
[368743236,1751341842986,-460.0,0.00018714,2]
[368743238,1751341842995,-268.08,0.00018714,2]
[368743239,1751341843005,-1296.97,0.00018714,2]
[368743240,1751341843015,-460.0,0.00018714,2]
[368743241,1751341843024,-500.0,0.00018714,2]
[368743242,1751341843034,-460.0,0.00018714,2]
[368743243,1751341843044,-564.1,0.00018714,2]
[368743244,1751341843053,-1745.13,0.00018714,2]
[368743245,1751341843063,-460.0,0.00018714,2]
[368743246,1751341843072,-460.0,0.00018714,2]
[368743247,1751341843082,-460.0,0.00018714,2]
[368743248,1751341843092,-460.0,0.00018714,2]
[368743249,1751341843102,-541.06,0.00018714,2]
[368743250,1751341843111,-460.0,0.00018714,2]
[368743251,1751341843121,-541.81,0.00018714,2]
[368743252,1751341843130,-460.0,0.00018714,2]
[368743253,1751341843144,-460.0,0.00018714,2]
[368743254,1751341843154,-460.0,0.00018714,2]
[368743255,1751341843163,-380.09694552,0.00018714,2]
[368743256,1751341843173,-1406.41,0.00018714,2]
[368743257,1751341843183,-460.0,0.00018714,2]
[368743258,1751341843191,-460.0,0.00018714,2]
[368743259,1751341843201,-460.0,0.00018714,2]
[368743260,1751341843211,-1241.9,0.00018714,2]
[368743261,1751341843220,-460.0,0.00018714,2]
[368743262,1751341843230,-2046.37,0.00018714,2]
[368743264,1751341843240,-460.0,0.00018714,2]
[368743266,1751341843250,-460.0,0.00018714,2]
[368743267,1751341843259,-460.0,0.00018714,2]
[368743268,1751341843273,-460.0,0.00018714,2]
[368743269,1751341843282,-460.0,0.00018714,2]
[368743270,1751341843292,-460.0,0.00018714,2]
[368743271,1751341843302,-460.0,0.00018714,2]
[368743272,1751341843312,-460.0,0.00018714,2]
[368743273,1751341843321,-460.0,0.00018714,2]
[368743274,1751341843332,-841.29,0.00018714,2]
[368743275,1751341843341,-461.16,0.00018714,2]
[368743276,1751341843351,-272.25210914,0.00018714,2]
[368743277,1751341843361,-460.0,0.00018714,2]
[368743278,1751341843370,-460.0,0.00018714,2]
[368743279,1751341843380,-460.0,0.00018714,2]
[368743280,1751341843390,-460.0,0.00018714,2]
[368743281,1751341843400,-460.0,0.00018714,2]
[368743282,1751341843409,-199.02,0.00018714,2]
[368743283,1751341843419,-460.0,0.00018714,2]
[368743284,1751341843429,-460.0,0.00018714,2]
[368743285,1751341843438,-460.0,0.00018714,2]
[368743286,1751341843448,-460.0,0.00018714,2]
[368743287,1751341843457,-460.0,0.00018714,2]
[368743288,1751341843467,-533.47,0.00018714,2]
[368743289,1751341843477,-955.58,0.00018714,2]
[368743290,1751341843487,-460.0,0.00018714,2]
[368743291,1751341843496,-460.0,0.00018714,2]
[368743292,1751341843506,-460.0,0.00018714,2]
[368743293,1751341843516,-460.0,0.00018714,2]
[368743294,1751341843525,-151.0,0.00018714,2]
[368743295,1751341843535,-293.76,0.00018714,2]
[368743296,1751341843545,-460.0,0.00018714,2]
[368743297,1751341843555,-460.0,0.00018714,2]
[368743298,1751341843565,-151.920531,0.00018714,2]
[368743299,1751341843575,-460.0,0.00018714,2]
[368743300,1751341843584,-151.0,0.00018714,2]
[368743301,1751341843594,-460.0,0.00018714,2]
[368743302,1751341843604,-460.0,0.00018714,2]
[368743303,1751341843615,-283.374973,0.00018714,2]
[368743304,1751341843624,-460.0,0.00018714,2]
[368743305,1751341843634,-460.0,0.00018714,2]
[368743306,1751341843643,-151.0,0.00018714,2]
[368743307,1751341843653,-460.0,0.00018714,2]
[368743308,1751341843662,-460.0,0.00018714,2]
[368743309,1751341843671,-460.0,0.00018714,2]
[368743310,1751341843681,-151.0,0.00018714,2]
[368743311,1751341843690,-460.0,0.00018714,2]
[368743312,1751341843699,-460.0,0.00018714,2]
[368743313,1751341843709,-151.0,0.00018714,2]
[368743314,1751341843718,-151.432419,0.00018714,2]
[368743315,1751341843727,-460.0,0.00018714,2]
[368743316,1751341843737,-460.0,0.00018714,2]
[368743317,1751341843746,-460.0,0.00018714,2]
[368743318,1751341843756,-153.80461064,0.00018715,2]
[368743319,1751341843765,-220.92,0.00018715,2]
[368743320,1751341843774,-463.43727502,0.00018715,2]
[368743321,1751341843783,-460.0,0.00018715,2]
[368743322,1751341843793,-460.0,0.00018715,2]
[368743323,1751341843802,-460.0,0.00018715,2]
[368743324,1751341843811,-460.0,0.00018715,2]
[368743325,1751341843821,-460.0,0.00018715,2]
[368743326,1751341843831,-460.0,0.00018715,2]
[368743327,1751341843840,-460.0,0.00018715,2]
[368743328,1751341843850,-460.0,0.00018715,2]
[368743329,1751341843859,-460.0,0.00018715,2]
[368743330,1751341843869,-463.69099919,0.00018715,2]
[368743331,1751341843879,-460.0,0.00018715,2]
[368743332,1751341843889,-460.0,0.00018715,2]
[368743333,1751341843898,-460.0,0.00018715,2]
[368743334,1751341843908,-377.90620929,0.00018715,2]
[368743335,1751341843917,-462.66,0.00018715,2]
[368743336,1751341843929,-460.0,0.00018715,2]
[368743337,1751341843938,-460.0,0.00018715,2]
[368743338,1751341843948,-464.49062773,0.00018715,2]
[368743339,1751341843957,-460.0,0.00018715,2]
[368743340,1751341843967,-460.0,0.00018715,2]
[368743341,1751341843976,-460.0,0.00018715,2]
[368743342,1751341843986,-395.76,0.00018715,2]
[368743343,1751341843995,-243.140389,0.00018715,2]
[368743344,1751341844004,-460.0,0.00018715,2]
[368743345,1751341844014,-500.0,0.00018715,2]
[368743346,1751341844023,-460.0,0.00018715,2]
[368743347,1751341844031,-460.0,0.00018715,2]
[368743348,1751341844041,-460.0,0.00018715,2]
[368743349,1751341844051,-460.0,0.00018715,2]
[368743350,1751341844060,-460.0,0.00018715,2]
[368743351,1751341844070,-460.0,0.00018715,2]
[368743352,1751341844079,-460.0,0.00018715,2]
[368743353,1751341844090,-460.0,0.00018715,2]
[368743354,1751341844099,-460.0,0.00018715,2]
[368743355,1751341844109,-460.0,0.00018715,2]
[368743356,1751341844118,-460.0,0.00018715,2]
[368743357,1751341844128,-460.0,0.00018715,2]
[368743358,1751341844234,-460.0,0.00018715,2]
[368743359,1751341844245,-765.26,0.00018715,2]
[368743360,1751341844256,-460.0,0.00018715,2]
[368743361,1751341844266,-151.487986,0.00018715,2]
[368743362,1751341844275,-151.0,0.00018715,2]
[368743363,1751341844285,-460.0,0.00018715,2]
[368743364,1751341844295,-460.0,0.00018715,2]
[368743365,1751341844306,-460.0,0.00018715,2]
[368743366,1751341844316,-151.0,0.00018715,2]
[368743367,1751341844326,-224.11971121,0.00018715,2]
[368743368,1751341844335,-151.0,0.00018715,2]
[368743369,1751341844346,-460.0,0.00018715,2]
[368743370,1751341844355,-460.0,0.00018715,2]
[368743371,1751341844364,-460.0,0.00018715,2]
[368743372,1751341844374,-460.0,0.00018715,2]
[368743373,1751341844384,-460.0,0.00018715,2]
[368743374,1751341844395,-460.0,0.00018715,2]
[368743375,1751341844406,-1559.66,0.00018715,2]
[368743376,1751341844416,-460.0,0.00018715,2]
[368743377,1751341844426,-460.0,0.00018715,2]
[368743378,1751341844436,-460.0,0.00018715,2]
[368743379,1751341844446,-552.37,0.00018715,2]
[368743380,1751341844456,-460.0,0.00018715,2]
[368743381,1751341844465,-490.90888782,0.00018715,2]
[368743382,1751341844475,-151.876877,0.00018715,2]
[368743383,1751341844485,-524.77,0.00018715,2]
[368743384,1751341844497,-460.0,0.00018715,2]
[368743385,1751341844506,-460.0,0.00018715,2]
[368743386,1751341844516,-151.0,0.00018715,2]
[368743387,1751341844527,-151.738763,0.00018715,2]
[368743388,1751341844537,-151.0,0.00018715,2]
[368743389,1751341844547,-460.0,0.00018715,2]
[368743390,1751341844557,-151.0,0.00018715,2]
[368743391,1751341844567,-1381.37,0.00018715,2]
[368743392,1751341844577,-460.0,0.00018715,2]
[368743393,1751341844587,-3239.66,0.00018715,2]
[368743394,1751341844598,-460.0,0.00018715,2]
[368743395,1751341844608,-460.0,0.00018715,2]
[368743396,1751341844620,-460.0,0.00018715,2]
[368743397,1751341844630,-460.0,0.00018715,2]
[368743398,1751341844639,-151.0,0.00018715,2]
[368743399,1751341844648,-666.37,0.00018715,2]
[368743400,1751341844659,-460.0,0.00018715,2]
[368743401,1751341844669,-151.0,0.00018715,2]
[368743402,1751341844679,-503.53,0.00018715,2]
[368743403,1751341844689,-151.0,0.00018715,2]
[368743404,1751341844699,-151.0,0.00018715,2]
[368743405,1751341844708,-151.0,0.00018715,2]
[368743406,1751341844718,-460.0,0.00018715,2]
[368743407,1751341844728,-460.0,0.00018715,2]
[368743408,1751341844736,-152.616377,0.00018715,2]
[368743409,1751341844745,-151.0,0.00018715,2]
[368743410,1751341844757,-2695.47,0.00018715,2]
[368743411,1751341844766,-151.0,0.00018715,2]
[368743412,1751341844775,-165.255691,0.00018715,2]
[368743413,1751341844785,-460.0,0.00018715,2]
[368743414,1751341844794,-460.0,0.00018715,2]
[368743415,1751341844803,-460.0,0.00018715,2]
[368743416,1751341844814,-962.98,0.00018715,2]
[368743417,1751341844824,-151.0,0.00018715,2]
[368743418,1751341844833,-1096.19,0.00018715,2]
[368743419,1751341844842,-742.26,0.00018715,2]
[368743420,1751341844853,-460.0,0.00018715,2]
[368743421,1751341844863,-460.0,0.00018715,2]
[368743422,1751341844875,-460.0,0.00018715,2]
[368743423,1751341844884,-460.0,0.00018715,2]
[368743424,1751341844894,-460.0,0.00018715,2]
[368743425,1751341844904,-151.0,0.00018715,2]
[368743426,1751341844913,-151.0,0.00018715,2]
[368743427,1751341844923,-460.0,0.00018716,2]
[368743428,1751341844939,-460.0,0.00018716,2]
[368743429,1751341844949,-460.0,0.00018716,2]
[368743430,1751341844958,-460.0,0.00018716,2]
[368743431,1751341844968,-460.0,0.00018716,2]
[368743432,1751341844977,-428.94001828,0.00018716,2]
[368743433,1751341844987,-463.8293393,0.00018716,2]
[368743434,1751341844998,-460.0,0.00018716,2]
[368743435,1751341845008,-486.68,0.00018718,2]
[368743436,1751341845019,-460.0,0.00018718,2]
[368743437,1751341845028,-500.58,0.00018718,2]
[368743438,1751341845038,-504.6500774,0.00018718,2]
[368743439,1751341845049,-460.0,0.00018718,2]
[368743440,1751341845059,-460.0,0.00018718,2]
[368743441,1751341845069,-460.0,0.00018718,2]
[368743442,1751341845078,-460.0,0.00018718,2]
[368743443,1751341845088,-524.71,0.00018718,2]
[368743444,1751341845097,-460.0,0.00018718,2]
[368743445,1751341845107,-460.0,0.00018718,2]
[368743446,1751341845116,-460.0,0.00018718,2]
[368743447,1751341845125,-460.0,0.00018718,2]
[368743448,1751341845135,-460.0,0.00018718,2]
[368743449,1751341845145,-460.0,0.00018718,2]
[368743450,1751341845154,-460.0,0.0001872,2]
[368743451,1751341845162,-460.0,0.0001872,2]
[368743452,1751341845172,-460.0,0.0001872,2]
[368743453,1751341845181,-460.0,0.0001872,2]
[368743454,1751341845191,-460.0,0.0001872,2]
[368743455,1751341845200,-460.0,0.0001872,2]
[368743456,1751341845209,-460.0,0.0001872,2]
[368743457,1751341845218,-151.0,0.0001872,2]
[368743458,1751341845227,-151.0,0.0001872,2]
[368743459,1751341845237,-151.0,0.0001872,2]
[368743460,1751341845247,-248.484447,0.0001872,2]
[368743461,1751341845256,-226.321941,0.0001872,2]
[368743462,1751341845266,-151.0,0.0001872,2]
[368743463,1751341845275,-460.0,0.0001872,2]
[368743464,1751341845285,-460.0,0.0001872,2]
[368743465,1751341845296,-460.0,0.0001872,2]
[368743466,1751341845306,-500.0,0.0001875,2]
[368743467,1751341845317,-1000.0,0.000188,3]
[368743468,1751341845327,-227.12522766,0.00018841,2]
[368743469,1751341845336,-460.0,0.00018987,2]
[368743470,1751341845346,-301.8,0.00018987,2]
[368743471,1751341845356,-550.18575235,0.00018987,2]
[368743472,1751341845366,-268.6,0.00018987,2]
[368743473,1751341845375,-350.58038497,0.00018987,2]
[368743474,1751341845385,-324.06,0.00018987,2]
[368743475,1751341845394,-514.50010549,0.00018987,2]
[368743476,1751341845404,-460.0,0.00018987,2]
[368743477,1751341845414,-460.0,0.00018987,2]
[368743478,1751341845424,-1131.01,0.00018987,2]
[368743480,1751341845434,-460.0,0.00018987,2]
[368743481,1751341845444,-466.90103623,0.00018987,2]
[368743482,1751341845454,-460.0,0.00018987,2]
[368743483,1751341845463,-460.0,0.00018988,2]
[368743484,1751341845474,-460.0,0.00018988,2]
[368743485,1751341845484,-460.0,0.00018988,2]
[368743486,1751341845494,-460.0,0.00018988,2]
[368743487,1751341845504,-411.39,0.00018988,2]
[368743488,1751341845514,-151.0,0.00018988,2]
[368743489,1751341845523,-151.0,0.00018988,2]
[368743490,1751341845533,-151.0,0.00018988,2]
[368743491,1751341845543,-460.0,0.00018988,2]
[368743492,1751341845552,-1409.12,0.00018988,2]
[368743493,1751341845562,-460.0,0.00018988,2]
[368743494,1751341845571,-460.0,0.00018988,2]
[368743495,1751341845582,-1296.97,0.00018988,2]
[368743496,1751341845592,-220.94,0.00018988,2]
[368743498,1751341845602,-460.0,0.00018988,2]
[368743499,1751341845612,-1745.13,0.00018988,2]
[368743500,1751341845622,-460.0,0.00018988,2]
[368743501,1751341845631,-460.0,0.00018988,2]
[368743502,1751341845641,-460.0,0.00018988,2]
[368743503,1751341845650,-460.0,0.00018988,2]
[368743504,1751341845660,-541.81,0.00018988,2]
[368743505,1751341845672,-460.0,0.00018988,2]
[368743506,1751341845683,-391.95,0.00018988,2]
[368743507,1751341845693,-460.0,0.00018988,2]
[368743508,1751341845704,-1406.41,0.00018988,2]
[368743510,1751341845714,-460.0,0.00018988,2]
[368743512,1751341845723,-460.0,0.00018988,2]
[368743514,1751341845733,-1241.9,0.00018988,2]
[368743515,1751341845743,-460.0,0.00018988,2]
[368743517,1751341845752,-2046.37,0.00018988,2]
[368743519,1751341845762,-460.0,0.00018988,2]
[368743521,1751341845772,-460.0,0.00018988,2]
[368743523,1751341845781,-460.0,0.00018988,2]
[368743526,1751341845791,-415.39,0.00018988,2]
[368743528,1751341845801,-460.0,0.00018988,2]
[368743530,1751341845811,-460.0,0.00018988,2]
[368743532,1751341845821,-520.95,0.00018988,2]
[368743534,1751341845831,-460.0,0.00018988,2]
[368743536,1751341845840,-460.0,0.00018988,2]
[368743538,1751341845851,-841.29,0.00018988,2]
[368743540,1751341845863,-460.0,0.00018988,2]
[368743541,1751341845872,-556.79518526,0.00018988,2]
[368743542,1751341845882,-171.14,0.00018988,2]
[368743543,1751341845891,-460.0,0.00018988,2]
[368743544,1751341845901,-460.0,0.00018988,2]
[368743545,1751341845910,-460.0,0.00018988,2]
[368743546,1751341845920,-460.0,0.00018988,2]
[368743547,1751341845933,-460.0,0.00018988,2]
[368743548,1751341845943,-460.0,0.00018988,2]
[368743549,1751341845952,-533.47,0.00018988,2]
[368743550,1751341845962,-955.58,0.00018988,2]
[368743551,1751341845973,-460.0,0.00018988,2]
[368743552,1751341845982,-460.0,0.00018988,2]
[368743553,1751341845991,-151.0,0.00018988,2]
[368743554,1751341846000,-213.35048237,0.00018988,2]
[368743555,1751341846010,-151.0,0.00018988,2]
[368743556,1751341846020,-460.0,0.00018988,2]
[368743557,1751341846029,-570.39,0.00018988,2]
[368743558,1751341846039,-460.0,0.00018988,2]
[368743559,1751341846050,-384.74975239,0.00018988,2]
[368743560,1751341846059,-151.0,0.00018988,2]
[368743561,1751341846069,-460.0,0.00018988,2]